Cogmind - Beta 16 @@@ ROGUE MODE // 2025.11.01 @ 19:17:59 Player: 3.14 Result: Destroyed by P-80 Master with Gamma Rifle Performance ------------- Evolutions (9) 4500 Regions Visited (20) 4000 Robots Destroyed (184) 920 Value Destroyed (7268) 7268 Prototype IDs (40) 800 Alien Tech Used (0) 0 Bonus (5193) 5193 TOTAL SCORE: 22681 Bonus ------- High Alert Combat Kills 132 Follower Combat Kills 1470 Entered Garrisons 200 Entered DSFs 500 Aligned with FarCom 300 Built Enhanced Grunts 300 A7 Reached Mainframe 300 Met R17 at Research 2000 Friendly Fire -9 Cogmind --------- Core Integrity 0/1600 Matter 279/300 Energy 100/100 System Corruption 22% Temperature Cool (0) Movement Core (50) Location -1/Access Parts ------- > --- POWER (2) -------- (None) > --- PROPULSION (6) --- (None) > --- UTILITY (13) ----- Transport Network Coupler Improved Melee Analysis Suite Improved Hacking Suite > --- WEAPON (4) ------- (None) > --- INVENTORY (5) ---- Micro Fission Core Improved Phase Shifter Ionic Axe Peak State ------------ > --- POWER ------------ Quantum Reactor Light Quantum Reactor > --- PROPULSION ------- Biometal Leg Biometal Leg Biometal Leg Enhanced Biometal Leg Centrium Leg Centrium Leg > --- UTILITY ---------- Large Storage Unit Long-range Terrain Scanner Core Analyzer Advanced Force Booster Improved Transmission Jammer Centrium Medium Armor Plating Centrium Medium Armor Plating Medium Regenerative Plating Improved Hacking Suite Improved Hacking Suite Advanced System Shield Stealth Drone Bay > --- WEAPON ----------- Power Sword Ionic Axe Lance Lance > --- INVENTORY -------- Light Antimatter Reactor Particle Reactor Light Particle Reactor Flexi-carbon Leg Flexi-carbon Leg Enhanced Flexi-carbon Leg Enhanced Flexi-carbon Leg Myomer Leg Biometal Leg Centrium Medium Armor Plating Experimental Thermal Shield Hacking Suite Advanced System Shield System Restoration Module Micro-nuke Launcher [Rating: 187] Favorites ----------- Power Ion Engine Engine Ion Engine Power Core Neutrino Core Reactor Light Antimatter Reactor Propulsion Light Treads Treads Light Treads Leg Enhanced Flexi-carbon Leg Flight Unit Advanced Surge Thruster Utility Large Storage Unit Device Improved Focal Shield Storage Large Storage Unit Processor Core Analyzer Hackware Advanced System Shield Protection Improved Medium Armor Plating Weapon Longsword +1 Ballistic Gun Assault Rifle Ballistic Cannon Flak Cannon Launcher Rocket Launcher Slashing Weapon Longsword +1 Piercing Weapon Lance Build | -11 -10 -10 -10 -9 -8 -7 -7 -7 -6 -6 -5 -5 -4 -4 -4 -4 -4 -3 -2 -1 ------- Run | Yrd Mat Min Exi Min Mat Fac Low Low Fac DSF Fac Gar Fac Ext Cet Arc Hub Res Res Acc Slots Evolved 18 | . . . . . 4 2 . . 2 . 2 . 2 . . . . 2 2 2 Power 1 | . . . . . . . . . 1 . . . . . . . . . . . Propulsion 4 | . . . . . 2 1 . . . . . . 1 . . . . . . . Utility 11 | . . . . . 2 1 . . 1 . 1 . 1 . . . . 1 2 2 Weapon 2 | . . . . . . . . . . . 1 . . . . . . 1 . . Parts Attached 183 | 7 6 2 1 7 15 16 4 . 3 4 7 1 12 27 12 1 12 12 5 29 Power 23 | 1 . 1 . . 1 1 . . 1 1 1 . 3 4 2 . 2 2 1 2 Engine 5 | 1 . 1 . . 1 1 . . 1 . . . . . . . . . . . Core 8 | . . . . . . . . . . 1 1 . 1 3 . . 1 . . 1 Reactor 10 | . . . . . . . . . . . . . 2 1 2 . 1 2 1 1 Propulsion 61 | 2 . 1 . 2 6 3 . . . 1 2 1 5 14 6 . 2 6 1 9 Treads 5 | 2 . 1 . . . . . . . . . . . . . . . . . 2 Leg 54 | . . . . 2 6 3 . . . 1 2 1 5 14 6 . 2 6 1 5 Wheel . | . . . . . . . . . . . . . . . . . . . . . Hover . | . . . . . . . . . . . . . . . . . . . . . Flight 2 | . . . . . . . . . . . . . . . . . . . . 2 Utility 75 | 1 4 . . 1 7 11 3 . 2 2 3 . 4 6 4 1 5 4 3 14 Device 22 | . . . . . 2 1 1 . . . 1 . 2 1 2 1 2 1 2 6 Storage 5 | 1 2 . . . 1 . . . . . . . . . . . . . . 1 Processor 11 | . . . . . 1 2 . . 1 . . . 1 2 . . . 1 . 3 Hackware 10 | . . . . . . 3 . . . . 1 . . . . . . 2 . 4 Protection 27 | . 2 . . 1 3 5 2 . 1 2 1 . 1 3 2 . 3 . 1 . Artifact . | . . . . . . . . . . . . . . . . . . . . . Weapon 24 | 3 2 . 1 4 1 1 1 . . . 1 . . 3 . . 3 . . 4 Energy Gun . | . . . . . . . . . . . . . . . . . . . . . Energy Cannon . | . . . . . . . . . . . . . . . . . . . . . Ballistic Gun 9 | 3 1 . 1 2 . . . . . . . . . . . . . . . 2 Ballistic Cannon 1 | . . . . 1 . . . . . . . . . . . . . . . . Launcher 5 | . 1 . . 1 . 1 . . . . . . . 1 . . 1 . . . Special Weapon . | . . . . . . . . . . . . . . . . . . . . . Impact Weapon . | . . . . . . . . . . . . . . . . . . . . . Slashing Weapon 7 | . . . . . 1 . 1 . . . 1 . . 2 . . 1 . . 1 Piercing Weapon 2 | . . . . . . . . . . . . . . . . . 1 . . 1 Special Melee Weapon . | . . . . . . . . . . . . . . . . . . . . . Unidentified Prototypes 11 | . . . . . . . . . . . . . 2 . 4 . . 2 . 3 Parts Lost 38 | . 2 . . 4 1 . . . . 5 . . . 2 . . 1 . 2 21 Power 1 | . . . . . . . . . . 1 . . . . . . . . . . Propulsion 11 | . . . . 2 . . . . . 1 . . . 1 . . . . . 7 Utility 19 | . 1 . . 1 1 . . . . 2 . . . 1 . . . . 2 11 Weapon 7 | . 1 . . 1 . . . . . 1 . . . . . . 1 . . 3 Highest Loss Streak 5 | . 2 . . 3 1 . . . . 3 . . . 1 . . 1 . 1 5 To Critical Strikes . | . . . . . . . . . . . . . . . . . . . . . Average Backups 16 | 2 19 22 25 24 15 14 15 15 13 13 14 15 13 13 14 14 13 14 14 9 Power 1 | . 1 1 1 1 1 1 1 1 . . 1 1 1 1 1 1 . 1 2 1 Propulsion 3 | 1 4 5 5 4 2 4 3 3 3 3 2 2 1 2 3 3 3 3 4 3 Utility 7 | . 7 7 9 10 7 8 9 9 8 7 9 11 10 9 9 9 8 8 7 3 Weapon 3 | . 5 7 8 7 3 1 1 2 2 1 1 1 1 1 1 1 1 1 1 1 Tool/Special . | . . . . . . . . . . . . . . . . . . . . . Unused Backups 42 | . 19 1 1 4 4 4 . . . . 2 . 1 1 . 2 . . . 3 Power 7 | . 1 1 1 . . 1 . . . . 1 . . . . . . . . 2 Propulsion 16 | . 13 . . . 1 1 . . . . . . . 1 . . . . . . Utility 12 | . 3 . . 1 1 2 . . . . 1 . 1 . . 2 . . . 1 Weapon 6 | . 2 . . 3 1 . . . . . . . . . . . . . . . Tool/Special 1 | . . . . . 1 . . . . . . . . . . . . . . . Average Slot Usage (%) 95 | . 96 100 100 98 99 98 100 100 99 92 89 100 99 99 99 100 99 91 93 69 Engine 6 | . 14 14 14 14 9 7 7 7 13 8 1 . . . . . . . . . Core 1 | . . . . . . . . . . 3 8 11 7 8 4 . . 1 . . Reactor 2 | . . . . . . . . . . . . . 2 1 5 10 8 7 8 5 Treads 9 | . 27 28 28 21 . . . . . . . . . . . . . . . . Leg 19 | . . . . 5 35 38 38 38 33 31 28 29 30 31 31 31 30 28 26 17 Device 5 | . . . . . 11 7 2 . . . 2 5 5 9 9 10 10 10 15 10 Storage 8 | . 14 14 14 14 9 7 7 7 6 6 5 5 5 5 5 5 5 4 4 2 Processor 5 | . . . . . 7 2 15 15 16 14 11 11 10 7 10 10 10 7 4 6 Hackware 4 | . . . . . . 6 7 7 6 6 10 11 10 10 9 5 5 9 13 8 Protection 9 | . 10 14 14 13 7 10 4 7 9 10 8 5 9 7 5 10 9 5 7 7 Ballistic Gun 9 | . 27 28 28 21 . . . . . . . . . . . . . . . 1 Ballistic Cannon 1 | . . . . 1 9 6 . . . . . . . . . . . . . . Slashing Weapon 6 | . . . . . 8 7 13 15 13 7 5 11 10 13 15 15 11 9 8 5 Peak Build Rating 187 | 6 10 14 14 18 38 52 54 52 61 63 82 82 99 107 140 140 137 143 156 187 Average Rating 62 | 5 9 11 13 15 35 45 51 52 60 58 70 82 91 100 115 138 127 134 149 128 On Entrance 68 | . 6 10 14 14 18 37 51 52 52 61 61 82 82 97 107 140 137 124 134 149 Avg Prop Armor Cover (%) 6 | . . . . . . 3 5 5 4 6 . . 2 2 . . . 3 2 18 Naked Turns . | . . . . . . . . . . . . . . . . . . . . . Heaviest Build 118 | 14 92 95 95 101 103 58 46 44 62 59 61 61 68 78 84 81 89 84 95 118 Greatest Support 162 | 40 40 40 40 40 61 74 61 61 61 74 88 88 105 124 162 162 162 154 134 144 Greatest Overweight (x) 32 | . 2 2 2 32 1 1 . . 1 1 . . . . . . . . . 4 Average Overweight (x) . | . 1 2 2 2 . . . . . . . . . . . . . . . . Largest Inventory Capacity 25 | 8 25 25 25 25 25 15 15 15 15 15 15 15 15 15 15 15 15 15 15 15 Average Capacity 17 | 7 21 25 25 25 15 15 15 15 15 15 15 15 15 15 15 15 15 15 15 11 Most Carried 25 | 4 25 25 25 25 21 15 15 15 14 14 15 15 15 15 15 15 15 15 15 15 Average Carried 16 | 2 19 22 24 24 14 14 14 15 13 13 14 15 14 14 15 14 14 14 14 9 Final Capacity 25 | 8 25 25 25 25 15 15 15 15 15 15 15 15 15 15 15 15 15 15 15 5 Final Carried 25 | 4 20 25 25 22 15 15 15 15 14 14 15 15 15 15 15 15 13 15 15 3 Class Distribution -------------------- 51% | Mutant 12% | Scavenger-Mutant 11% | Hacker-Mutant 11% | Scavenger-Gladiator 4% | Hacker-Gladiator 4% | Commander-Mutant Dominant Class ---------------- Mutant | -10/Materials Mutant | -10/Mines Mutant | -10/Exiles Mutant | -9/Mines Mutant | -8/Materials Mutant | -7/Factory Gladiator | -7/Lower Caves Gladiator | -7/Lower Caves Gladiator | -6/Factory Mutant | -6/DSF Hacker-Mutant | -5/Factory Scavenger-Gladiator | -5/Garrison Scavenger-Gladiator | -4/Factory Commander-Mutant | -4/Extension Hacker-Mutant | -4/Cetus Scavenger-Mutant | -4/Archives Scavenger-Mutant | -4/Hub_04(d) Hacker-Mutant | -3/Research Scavenger-Gladiator | -2/Research Scavenger-Gladiator | -1/Access Resources | -11 -10 -10 -10 -9 -8 -7 -7 -7 -6 -6 -5 -5 -4 -4 -4 -4 -4 -3 -2 -1 ----------- Run | Yrd Mat Min Exi Min Mat Fac Low Low Fac DSF Fac Gar Fac Ext Cet Arc Hub Res Res Acc Matter Collected 3931 | 259 461 38 . 265 176 188 55 . . 142 169 97 252 429 170 10 267 231 70 652 Remotely . | . . . . . . . . . . . . . . . . . . . . . Salvage Created 8513 | . 750 122 . 328 363 410 244 . . 515 455 228 500 1054 133 521 1129 297 278 1186 Parts 430 | . 46 5 . 11 18 29 11 . . 26 35 13 27 30 6 25 55 12 8 73 Haulers Intercepted 7 | . 1 . . . 2 1 . . . 1 . . . . . . . 1 . 1 Recyclers Shooed 3 | . 3 . . . . . . . . . . . . . . . . . . . Parts Field Recycled . | . . . . . . . . . . . . . . . . . . . . . Retrieved Matter . | . . . . . . . . . . . . . . . . . . . . . Parts Self-Destructed 12 | . . . . . . . 12 . . . . . . . . . . . . . Prevented 2 | . . . . . . . 2 . . . . . . . . . . . . . Parts Restored . | . . . . . . . . . . . . . . . . . . . . . Kills | -11 -10 -10 -10 -9 -8 -7 -7 -7 -6 -6 -5 -5 -4 -4 -4 -4 -4 -3 -2 -1 ------- Run | Yrd Mat Min Exi Min Mat Fac Low Low Fac DSF Fac Gar Fac Ext Cet Arc Hub Res Res Acc Combat Hostiles Destroyed 138 | . 16 3 . 11 7 6 5 . . 9 7 4 10 12 2 4 16 . 2 24 Melee 78 | . . . . . 7 6 5 . . 5 3 4 6 12 2 4 12 . 2 10 Guns 20 | . 14 3 . 3 . . . . . . . . . . . . . . . . AOE 40 | . 2 . . 8 . . . . . 4 4 . 4 . . . 4 . . 14 Classes Destroyed 20 | . 6 . . 2 2 2 2 . . 2 . . . . . . 1 . . 3 Worker 8 | . . . . . 1 . . . . . 2 . . . . . 2 2 . 1 Builder 12 | . 1 . . 1 . 1 . . . . 2 . . . . . 1 1 . 5 Hauler 7 | . 1 . . . 2 1 . . . 1 . . . . . . . 1 . 1 Recycler 12 | . 2 . . 2 1 . . . . . 1 . . 1 . . 2 1 1 1 Minesweeper 1 | . . . . . . . 1 . . . . . . . . . . . . . Mechanic 2 | . . . . . . 1 . . . . . . 1 . . . . . . . Operator 12 | . 1 . . . . . . . . . . . 1 1 . 4 1 1 . 3 Drone 1 | . . . . . . . . . . . . . . . . . . . . 1 Watcher 1 | . . . . . . . . . . . . . . . . . . . . 1 Swarmer 45 | . 5 . . . 6 . . . . 4 4 . 4 . . . 6 . . 16 Cutter 2 | . . . . . . . . . . . . . . . . . . . . 2 Grunt 37 | . 11 3 . . . 2 3 . . 2 . 2 4 7 . . 3 . . . Duelist 1 | . . . . . . . . . . . . . . . . . 1 . . . Sentry 17 | . . . . 2 . 1 . . . . 2 . . 4 . 4 3 . 1 . Specialist 2 | . . . . . . . . . . 2 . . . . . . . . . . Hunter 6 | . . . . . 1 1 . . . . 1 . . . . . . . . 3 Programmer 15 | . . . . . . 2 1 . . . . 2 2 1 . . 3 . 1 3 Heavy 1 | . . . . . . . . . . 1 . . . . . . . . . . Cetus Guard 2 | . . . . . . . . . . . . . . . 2 . . . . . Thief 1 | . . . . . . . 1 . . . . . . . . . . . . . Assembled 9 | . . . . 9 . . . . . . . . . . . . . . . . Best Kill Streak 8 | . 3 2 . 3 3 2 3 . . 4 4 2 4 3 1 3 5 3 2 8 Combat Bots Only 6 | . 3 2 . 2 3 2 3 . . 4 4 2 4 2 1 1 4 . 1 6 Max Kills in Single Turn 6 | . 3 1 . 2 1 1 1 . . 2 2 1 2 1 1 1 4 1 1 6 Gunslinging . | . . . . . . . . . . . . . . . . . . . . . Exploded 4 | . 2 . . 1 . . . . . 2 2 . 2 . . . 4 . . 4 Melee 1 | . . . . . 1 1 1 . . 1 1 1 1 1 1 1 1 . 1 1 Uniques/NPCs Destroyed . | . . . . . . . . . . . . . . . . . . . . . Combat | -11 -10 -10 -10 -9 -8 -7 -7 -7 -6 -6 -5 -5 -4 -4 -4 -4 -4 -3 -2 -1 -------- Run | Yrd Mat Min Exi Min Mat Fac Low Low Fac DSF Fac Gar Fac Ext Cet Arc Hub Res Res Acc Hostile Shots Fired 993 | . 99 11 . 33 17 82 17 26 . 65 15 14 30 62 21 24 131 1 32 313 Missed 342 | . 35 5 . 7 4 32 9 11 . 21 9 3 8 18 9 8 39 . 12 112 Hits 651 | . 64 6 . 26 13 50 8 15 . 44 6 11 22 44 12 16 92 1 20 201 Melee 20 | . . . . 3 . . 1 . . . . . . 2 . . 7 . . 7 Projectile 631 | . 64 6 . 23 13 50 7 15 . 44 6 11 22 42 12 16 85 1 20 194 AOE 3 | . 1 . . . . . . . . . . . . . . . . . . 2 Critical Strikes 35 | . 1 . . 2 . 1 . . . 1 . 1 1 3 4 . 10 . 2 9 Part Disruptions 2 | . . . . . . . . . . 2 . . . . . . . . . . Damage Taken 12888 | . 849 77 . 590 95 466 138 201 . 903 118 155 291 788 233 294 1708 28 589 5365 Core 2226 | . 104 . . 53 . 69 14 17 . 22 5 16 32 127 9 . 134 . . 1624 Absorbed by Shields 331 | . . . . . 40 . . . . . 25 57 53 67 89 . . . . . Redirected to Shielding 51 | . 51 . . . . . . . . . . . . . . . . . . . Ignored by Resistances 1032 | . . . . . . . . . . . . . 71 325 104 128 257 . 39 108 Regen/Repaired (Parts) 1287 | . 116 . . . . . . . . . 266 . 208 . 29 57 295 95 105 116 Core Remaining (%) 87 | 100 . . . 37 100 . . 85 . 97 . 97 . . . . 73 100 100 . Volleys Fired 142 | . 65 7 . 28 1 . . . . 7 3 . 6 7 . . 2 1 . 15 Largest 2 | . 2 2 . 2 1 . . . . 1 1 . 1 1 . . 1 1 . 2 Hottest 63 | . 40 40 . 60 37 . . . . 33 33 . 33 33 . . 49 49 . 63 Shots Fired 219 | . 127 14 . 35 1 . . . . 7 3 . 6 7 . . 2 1 . 16 Gun 152 | . 124 14 . 12 . . . . . . . . . . . . . . . 2 Cannon 3 | . . . . 2 1 . . . . . . . . . . . . . . . Launcher 64 | . 3 . . 21 . . . . . 7 3 . 6 7 . . 2 1 . 14 Special . | . . . . . . . . . . . . . . . . . . . . . Kinetic 155 | . 124 14 . 14 1 . . . . . . . . . . . . . . 2 Thermal . | . . . . . . . . . . . . . . . . . . . . . Explosive 53 | . 3 . . 10 . . . . . 7 3 . 6 7 . . 2 1 . 14 Electromagnetic 11 | . . . . 11 . . . . . . . . . . . . . . . . Robot Hit Streak 17 | . 10 6 . 17 . . . . . 2 . . 1 . . . . . . 2 Robot Miss Streak 7 | . 3 2 . 3 . . . . . 1 1 . 2 . . . . . . 7 Penetration Max . | . . . . . . . . . . . . . . . . . . . . . Secondary Targets 4 | . 3 . . 1 . . . . . . . . . . . . . . . . Max Gunslinging Chain 1 | . 1 . . 1 . . . . . . . . . . . . . . . . Shots Hit Robots 472 | . 88 10 . 20 23 29 13 . . 23 11 11 21 62 15 26 57 5 21 37 Core Hits 281 | . 40 6 . 26 8 9 5 . . 19 10 6 19 21 6 11 34 5 4 52 Critical Kills 1 | . 1 . . . . . . . . . . . . . . . . . . . Critical Parts Destroyed . | . . . . . . . . . . . . . . . . . . . . . Critical Strikes 35 | . 1 . . . 2 3 1 . . 2 . 1 4 7 1 1 5 . 2 5 Destroy 1 | . 1 . . . . . . . . . . . . . . . . . . . Sever 29 | . . . . . 2 3 1 . . 2 . 1 4 7 1 1 1 . 2 4 Impale 5 | . . . . . . . . . . . . . . . . . 4 . . 1 Melee Attacks 499 | . . . . . 30 33 13 . . 19 13 33 30 67 16 29 92 16 32 76 Impact . | . . . . . . . . . . . . . . . . . . . . . Slashing 412 | . . . . . 30 33 13 . . 19 13 33 30 67 16 29 39 4 27 59 Piercing 87 | . . . . . . . . . . . . . . . . . 53 12 5 17 Sneak Attacks 47 | . . . . . 4 4 1 . . 1 7 . 4 3 . 6 5 5 1 6 Combat Hostiles 6 | . . . . . . 1 . . . . . . 2 1 . . 1 . . 1 Follow-up Attacks 52 | . . . . . . . . . . . . 1 3 14 3 4 11 . 8 8 Damage Inflicted 25206 | . 1403 130 . 933 1326 1471 686 . . 1518 1170 535 1510 3030 669 1612 2669 605 1114 4825 Guns 1367 | . 1104 115 . 126 . . . . . . . . . . . . . . . 22 Cannons 32 | . . . . 32 . . . . . . . . . . . . . . . . Explosions 5651 | . 224 . . 722 . . . . . 656 296 . 432 30 . . 422 194 . 2675 Melee 17866 | . . . . . 1326 1463 686 . . 862 852 535 1078 2982 669 1612 2247 388 1114 2052 Ramming 290 | . 75 15 . 53 . 8 . . . . 22 . . 18 . . . 23 . 76 Kinetic 1399 | . 1104 115 . 158 . . . . . . . . . . . . . . . 22 Thermal 154 | . . . . 84 . . . . . . . . 70 . . . . . . . Explosive 5169 | . 224 . . 310 . . . . . 656 296 . 362 30 . . 422 194 . 2675 Electromagnetic 328 | . . . . 328 . . . . . . . . . . . . . . . . Impact . | . . . . . . . . . . . . . . . . . . . . . Slashing 15791 | . . . . . 1326 1463 686 . . 862 852 535 1078 2982 669 1612 1003 102 983 1638 Piercing 2075 | . . . . . . . . . . . . . . . . . 1244 286 131 414 Highest Corruption 22 | . . . . 3 . 1 2 2 . 2 . . 1 1 2 2 9 . 3 22 Average Corruption 2 | . . . . 2 . 1 1 2 . 1 . . 1 1 1 2 2 . 2 11 Corruption Purged . | . . . . . . . . . . . . . . . . . . . . . Corruption Blocked . | . . . . . . . . . . . . . . . . . . . . . Effects 68 | . . . . 4 . 2 2 . . 3 . . 6 9 3 3 11 . 3 22 Message Errors 25 | . . . . 2 . 1 . . . . . . 2 3 2 2 4 . 2 7 Matter Fused 11 | . . . . . . . 1 . . . . . 3 2 . . 2 . . 3 Heat Flow Errors 7 | . . . . 2 . 1 . . . . . . . 1 . . 2 . . 1 Energy Discharges 7 | . . . . . . . 1 . . 2 . . . . . . 1 . . 3 Parts Rejected 1 | . . . . . . . . . . 1 . . . . . . . . . . Data Loss (minor) 10 | . . . . . . . . . . . . . . 1 1 1 1 . 1 5 Data Loss (major) 2 | . . . . . . . . . . . . . 1 . . . . . . 1 Alerts 3 | . . . . . . . . . . . . . . 2 . . 1 . . . Misdirections 2 | . . . . . . . . . . . . . . . . . . . . 2 Overload Shots . | . . . . . . . . . . . . . . . . . . . . . Overflow Damage 2275 | . . . . 21 222 151 89 . . . 313 43 72 207 . 292 134 126 135 470 Projectiles . | . . . . . . . . . . . . . . . . . . . . . Explosions 234 | . . . . 21 . . . . . . 10 . 6 . . . 2 80 . 115 Melee 2041 | . . . . . 222 151 89 . . . 303 43 66 207 . 292 132 46 135 355 Knockbacks 4 | . . . . 4 . . . . . . . . . . . . . . . . Impact 1 | . . . . 1 . . . . . . . . . . . . . . . . Kinetic 3 | . . . . 3 . . . . . . . . . . . . . . . . Secondary . | . . . . . . . . . . . . . . . . . . . . . Self-Inflicted Damage 528 | . . . . 163 . . . . . . 48 . . . . . . . . 317 Shots 13 | . . . . 7 . . . . . . 2 . . . . . . . . 4 Rammed 31 | . 14 4 . 2 . . . . . . . . . . . . . . . 11 Targets Rammed 44 | . 14 4 . 6 . 1 . . . . 2 . . 1 . . . 1 . 15 Kicked 13 | . . . . 4 . 1 . . . . 2 . . 1 . . . 1 . 4 Crushed . | . . . . . . . . . . . . . . . . . . . . . Highest Temperature 291 | . 40 15 . 180 . 122 . 8 . 84 . . . 206 . . 245 291 . 110 Average Temperature 48 | . 10 6 . 54 . 44 . 7 . 45 . . . 97 . . 66 135 . 38 Received Heat Transfer 1591 | . 381 45 . 54 . 84 18 90 . 63 9 55 39 206 31 81 192 . 36 207 Effects 3 | . . . . . . . . . . . . . . . . . 3 . . . Interference 3 | . . . . . . . . . . . . . . . . . 3 . . . Siege Activations . | . . . . . . . . . . . . . . . . . . . . . Martial Activations . | . . . . . . . . . . . . . . . . . . . . . Shielding Activations . | . . . . . . . . . . . . . . . . . . . . . Robots Disrupted . | . . . . . . . . . . . . . . . . . . . . . Combat Hostiles . | . . . . . . . . . . . . . . . . . . . . . Robots Corrupted . | . . . . . . . . . . . . . . . . . . . . . Combat Hostiles . | . . . . . . . . . . . . . . . . . . . . . Parts Fried 1 | . . . . 1 . . . . . . . . . . . . . . . . Impact Corruptions . | . . . . . . . . . . . . . . . . . . . . . Robots Melted . | . . . . . . . . . . . . . . . . . . . . . Combat Hostiles . | . . . . . . . . . . . . . . . . . . . . . Parts Melted 1 | . . . . . . . . . . . . . . 1 . . . . . . Heat Transferred 200 | . . . . 150 . . . . . . . . 50 . . . . . . . Parts Sabotaged 3 | . . . . . . . . . . . . . . . . . . . . 3 Parts Stolen . | . . . . . . . . . . . . . . . . . . . . . Parts Stripped . | . . . . . . . . . . . . . . . . . . . . . Power Chain Reactions 4 | . . . . 4 . . . . . . . . . . . . . . . . Alert | -11 -10 -10 -10 -9 -8 -7 -7 -7 -6 -6 -5 -5 -4 -4 -4 -4 -4 -3 -2 -1 ------- Run | Yrd Mat Min Exi Min Mat Fac Low Low Fac DSF Fac Gar Fac Ext Cet Arc Hub Res Res Acc Maximum Alert Level 3 | . . . . . . . . . . 1 . 1 1 2 . . 1 . . 3 Low Security (%) 86 | 100 100 100 . 100 100 100 . . 100 67 100 44 45 42 100 100 90 100 100 57 Level 1 10 | . . . . . . . . . . 32 . 55 54 43 . . 9 . . 13 Level 2 2 | . . . . . . . . . . . . . . 13 . . . . . 13 Level 3 1 | . . . . . . . . . . . . . . . . . . . . 15 Level 4 . | . . . . . . . . . . . . . . . . . . . . . Level 5 . | . . . . . . . . . . . . . . . . . . . . . High Security . | . . . . . . . . . . . . . . . . . . . . . Max Security . | . . . . . . . . . . . . . . . . . . . . . Sterilizations 1 | . . . . . . . . . . 1 . . . . . . . . . . Peak Influence 917 | . 117 40 . 40 70 74 . . 25 221 122 237 315 486 182 30 234 122 40 917 Initial 134 | . . 22 . . . 4 . . 25 6 115 58 123 81 134 4 . 122 . . Average 81 | . 30 4 . 4 14 17 . . 15 110 59 178 208 213 81 8 67 29 5 303 Influence Increases 6384 | . 517 70 . 147 254 256 105 . 4 241 241 179 431 1359 204 100 540 128 73 1535 Destroy 0b10 Robot/C 3060 | . 320 60 . 40 140 120 80 . . 180 140 80 200 620 160 80 320 . 40 480 Destroy 0b10 Robot/NC 290 | . 25 . . 15 20 15 5 . . 10 25 . 10 15 5 20 30 30 5 60 Destroy Leader 516 | . 72 10 . . 34 42 20 . . 30 30 10 30 82 . . 70 2 10 74 Allied During Kill 506 | . . . . . . . . . . . . . . 473 33 . . . . . Successful Hack 182 | . 36 . . . 10 31 . . 4 . . . 22 66 . . . 13 . . Disable Machine 315 | . . . . . . 15 . . . . 30 . 135 15 . . 30 30 . 60 Anti-Garrison Action 50 | . . . . . . . . . . . . 50 . . . . . . . . Destroy Structure 805 | . 19 . . 92 5 3 . . . 21 16 9 34 58 6 . 90 8 3 441 Partial Spotted 105 | . . . . . . . . . . . . . . . . . . . . 105 Lose Combat Pursuer 555 | . 45 . . . 45 30 . . . . . 30 . 30 . . . 45 15 315 Influence Decreases 5473 | . 460 127 . 147 243 247 75 10 35 29 378 26 500 1287 432 112 306 362 73 624 Entered New Map 637 | . . 35 . . . 7 8 10 15 3 106 26 114 87 106 8 . 112 . . Time Decay 3710 | . 460 92 . 127 243 240 67 . 20 . 272 . 386 446 240 104 296 243 60 414 Lost Part 299 | . . . . 20 . . . . . 26 . . . 20 . . 10 . 13 210 Lost Ally 346 | . . . . . . . . . . . . . . 260 86 . . . . . Purge Threat 481 | . . . . . . . . . . . . . . 474 . . . 7 . . Squads Dispatched 48 | . 2 1 . . . 8 . . . 2 3 . 3 4 . . 4 4 2 15 Investigation 19 | . 1 1 . . . 4 . . . . 2 . 1 2 . . . 3 . 5 Extermination 12 | . . . . . . 2 . . . . 1 . 2 . . . 2 . 1 4 Reinforcement 15 | . 1 . . . . 2 . . . 2 . . . 1 . . 2 1 1 5 Assault 2 | . . . . . . . . . . . . . . 1 . . . . . 1 Garrison . | . . . . . . . . . . . . . . . . . . . . . Intercept . | . . . . . . . . . . . . . . . . . . . . . Searches Triggered . | . . . . . . . . . . . . . . . . . . . . . Construction Impeded 1 | . . . . . . . . . . . . . . . . . . . . 1 Haulers Reinforced . | . . . . . . . . . . . . . . . . . . . . . Active Scanning Responses . | . . . . . . . . . . . . . . . . . . . . . Cargo Convoy Interrupts . | . . . . . . . . . . . . . . . . . . . . . Stealth | -11 -10 -10 -10 -9 -8 -7 -7 -7 -6 -6 -5 -5 -4 -4 -4 -4 -4 -3 -2 -1 --------- Run | Yrd Mat Min Exi Min Mat Fac Low Low Fac DSF Fac Gar Fac Ext Cet Arc Hub Res Res Acc Distress Signals 24 | . 3 . . . 4 . . . . . . . . 4 2 . . 6 1 4 Communications Jammed 140 | . . . . . . . . . . . . . . . . . 28 . 65 47 Distress Signals 140 | . . . . . . . . . . . . . . . . . 28 . 65 47 Times Spotted 278 | . 34 5 . 12 16 10 9 7 . 9 9 4 11 29 12 9 18 5 9 70 Peak Tracking Total 21 | . 4 2 . 2 4 4 4 7 . 4 4 4 4 5 5 1 4 9 5 21 Tactical Retreats 23 | . 3 . . 1 3 1 . . . . . 1 . 2 . . . 1 1 10 Traps | -11 -10 -10 -10 -9 -8 -7 -7 -7 -6 -6 -5 -5 -4 -4 -4 -4 -4 -3 -2 -1 ------- Run | Yrd Mat Min Exi Min Mat Fac Low Low Fac DSF Fac Gar Fac Ext Cet Arc Hub Res Res Acc Traps Triggered 14 | . . . . . . 2 . . . . 4 1 . 3 . . 3 . . 1 Indirectly . | . . . . . . . . . . . . . . . . . . . . . Trap Hack Attempts . | . . . . . . . . . . . . . . . . . . . . . Triggered . | . . . . . . . . . . . . . . . . . . . . . Disarmed . | . . . . . . . . . . . . . . . . . . . . . Reprogrammed . | . . . . . . . . . . . . . . . . . . . . . Reused . | . . . . . . . . . . . . . . . . . . . . . Traps Extracted . | . . . . . . . . . . . . . . . . . . . . . Installed . | . . . . . . . . . . . . . . . . . . . . . Triggered . | . . . . . . . . . . . . . . . . . . . . . Machines | -11 -10 -10 -10 -9 -8 -7 -7 -7 -6 -6 -5 -5 -4 -4 -4 -4 -4 -3 -2 -1 ---------- Run | Yrd Mat Min Exi Min Mat Fac Low Low Fac DSF Fac Gar Fac Ext Cet Arc Hub Res Res Acc Machines Disabled 21 | . . . . . . 1 . . . . 2 . 9 1 . . 2 2 . 4 Max in Single Turn 2 | . . . . . . 1 . . . . 1 . 2 . . . 2 1 . 1 Machines Repaired . | . . . . . . . . . . . . . . . . . . . . . Machines Dismantled . | . . . . . . . . . . . . . . . . . . . . . Machines Sabotaged . | . . . . . . . . . . . . . . . . . . . . . Overloaded Fab Kills . | . . . . . . . . . . . . . . . . . . . . . Hacking | -11 -10 -10 -10 -9 -8 -7 -7 -7 -6 -6 -5 -5 -4 -4 -4 -4 -4 -3 -2 -1 --------- Run | Yrd Mat Min Exi Min Mat Fac Low Low Fac DSF Fac Gar Fac Ext Cet Arc Hub Res Res Acc Machines Accessed 65 | . 7 1 1 . 6 8 1 . 1 . 6 1 6 14 1 . . 5 1 6 Terminals 45 | . 5 . . . 5 4 . . 1 . 2 1 3 14 1 . . 3 1 5 Fabricators 7 | . . . . . . 3 . . . . 2 . 1 . . . . 1 . . Repair Stations 5 | . 1 . . . 1 . . . . . 1 . 2 . . . . . . . Recycling Units 1 | . 1 . . . . . . . . . . . . . . . . . . . Scanalyzers 2 | . . . . . . 1 . . . . . . . . . . . 1 . . Garrison Access 2 | . . . . . . . . . . . 1 . . . . . . . . 1 Total Hacks 187 | . 30 1 1 . 18 25 1 . 2 . 20 1 16 35 5 . . 15 2 15 Successful 94 | . 19 1 1 . 11 21 1 . 1 . 7 1 8 16 1 . . 4 1 1 Failed 93 | . 11 . . . 7 4 . . 1 . 13 . 8 19 4 . . 11 1 14 Catastrophic 19 | . 1 . . . 1 . . . . . 4 . 2 3 . . . 2 . 6 Database Lockouts . | . . . . . . . . . . . . . . . . . . . . . Manual 89 | . 27 . 1 . 11 11 . . . . 12 1 3 10 1 . . 6 2 4 Terminals 125 | . 21 . . . 15 7 . . 2 . 5 1 7 35 5 . . 11 2 14 Fabricators 25 | . . . . . . 14 . . . . 7 . 2 . . . . 2 . . Repair Stations 21 | . 4 . . . 3 . . . . . 7 . 7 . . . . . . . Recycling Units 5 | . 5 . . . . . . . . . . . . . . . . . . . Scanalyzers 6 | . . . . . . 4 . . . . . . . . . . . 2 . . Garrison Access 2 | . . . . . . . . . . . 1 . . . . . . . . 1 Terminal Hacks 39 | . 7 1 1 . 2 3 1 . 1 . . . 3 15 1 . . 3 1 . Record 1 | . . . . . . . . . . . . . . 1 . . . . . . Part Schematic 7 | . 3 . . . . 1 . . . . . . . 3 . . . . . . Robot Analysis 3 | . 2 . . . . . . . . . . . 1 . . . . . . . Prototype ID Bank 3 | . 1 . . . 2 . . . . . . . . . . . . . . . Open Door 10 | . . 1 . . . . 1 . . . . . 1 6 1 . . . . . Open DSF 3 | . . . . . . 1 . . 1 . . . . . . . . 1 . . Level Access Points 2 | . . . . . . . . . . . . . . . . . . 1 1 . Branch Access Points 3 | . . . . . . 1 . . . . . . 1 1 . . . . . . Terminal Index 1 | . 1 . . . . . . . . . . . . . . . . . . . Unreport Threat 5 | . . . . . . . . . . . . . . 4 . . . 1 . . Proto ID Catalog 1 | . . . 1 . . . . . . . . . . . . . . . . . Fabricator Hacks 8 | . . . . . . 8 . . . . . . . . . . . . . . Load Schematic 5 | . . . . . . 5 . . . . . . . . . . . . . . Build 3 | . . . . . . 3 . . . . . . . . . . . . . . Repair Station Hacks 13 | . 2 . . . 1 . . . . . 5 . 5 . . . . . . . Scan Component 8 | . 1 . . . 1 . . . . . 3 . 3 . . . . . . . Repair 5 | . 1 . . . . . . . . . 2 . 2 . . . . . . . Recycling Unit Hacks . | . . . . . . . . . . . . . . . . . . . . . Scanalyzer 3 | . . . . . . 2 . . . . . . . . . . . 1 . . Retrieve Study 3 | . . . . . . 2 . . . . . . . . . . . 1 . . Garrison Access Hacks 1 | . . . . . . . . . . . 1 . . . . . . . . . Unlock Access 1 | . . . . . . . . . . . 1 . . . . . . . . . Unauthorized Hacks 30 | . 10 . . . 8 8 . . . . 1 1 . 1 . . . . . 1 Terminals 21 | . 7 . . . 8 3 . . . . . 1 . 1 . . . . . 1 Assimilate 2 | . . . . . 1 1 . . . . . . . . . . . . . . Botnet 5 | . 1 . . . 1 1 . . . . . . . 1 . . . . . 1 Operators 2 | . 1 . . . 1 . . . . . . . . . . . . . . . Skim 11 | . 5 . . . 5 1 . . . . . . . . . . . . . . Override 1 | . . . . . . . . . . . . 1 . . . . . . . . Fabricators 6 | . . . . . . 5 . . . . 1 . . . . . . . . . Prioritize 2 | . . . . . . 2 . . . . . . . . . . . . . . Liberate 2 | . . . . . . 1 . . . . 1 . . . . . . . . . Recompile 2 | . . . . . . 2 . . . . . . . . . . . . . . Repair Stations 1 | . 1 . . . . . . . . . . . . . . . . . . . Patch 1 | . 1 . . . . . . . . . . . . . . . . . . . Recycling Units 2 | . 2 . . . . . . . . . . . . . . . . . . . Reject 1 | . 1 . . . . . . . . . . . . . . . . . . . Recyclers 1 | . 1 . . . . . . . . . . . . . . . . . . . Scanalyzers . | . . . . . . . . . . . . . . . . . . . . . Garrison Access . | . . . . . . . . . . . . . . . . . . . . . Data Cores Recovered . | . . . . . . . . . . . . . . . . . . . . . Used . | . . . . . . . . . . . . . . . . . . . . . Hacking Detections 48 | . 7 . . . 6 6 . . 1 . 5 . 5 6 1 . . 4 1 6 Full Trace Events 11 | . . . . . . 1 . . . . 2 . 1 2 . . . 1 . 4 Feedback Events . | . . . . . . . . . . . . . . . . . . . . . Feedback Blocked 1 | . . . . . . . . . . . . . . 1 . . . . . . Robot Schematics Acquired . | . . . . . . . . . . . . . . . . . . . . . Robots Built . | . . . . . . . . . . . . . . . . . . . . . Authchips . | . . . . . . . . . . . . . . . . . . . . . Time . | . . . . . . . . . . . . . . . . . . . . . Total Robot Build Rating . | . . . . . . . . . . . . . . . . . . . . . Part Schematics Acquired 7 | . 3 . . . . 1 . . . . . . . 3 . . . . . . Parts Built 6 | . . . . . . 6 . . . . . . . . . . . . . . Authchips 2 | . . . . . . 2 . . . . . . . . . . . . . . Time 126 | . . . . . . 126 . . . . . . . . . . . . . . Total Part Build Rating 24 | . . . . . . 24 . . . . . . . . . . . . . . Part Studies Acquired 3 | . . . . . . 2 . . . . . . . . . . . 1 . . Parts Repaired 5 | . 1 . . . . . . . . . 2 . 2 . . . . . . . Time 194 | . 26 . . . . . . . . . 82 . 86 . . . . . . . Parts Recycled . | . . . . . . . . . . . . . . . . . . . . . Recycled Matter . | . . . . . . . . . . . . . . . . . . . . . Retrieved Matter . | . . . . . . . . . . . . . . . . . . . . . Retrieved Components . | . . . . . . . . . . . . . . . . . . . . . Parts Scanalyzed . | . . . . . . . . . . . . . . . . . . . . . Part Schematics Acquired . | . . . . . . . . . . . . . . . . . . . . . Parts Damaged . | . . . . . . . . . . . . . . . . . . . . . Bothacking | -11 -10 -10 -10 -9 -8 -7 -7 -7 -6 -6 -5 -5 -4 -4 -4 -4 -4 -3 -2 -1 ------------ Run | Yrd Mat Min Exi Min Mat Fac Low Low Fac DSF Fac Gar Fac Ext Cet Arc Hub Res Res Acc Used RIF Installer . | . . . . . . . . . . . . . . . . . . . . . Robots Hacked . | . . . . . . . . . . . . . . . . . . . . . Non-combat . | . . . . . . . . . . . . . . . . . . . . . Combat . | . . . . . . . . . . . . . . . . . . . . . Robot Hacks Applied . | . . . . . . . . . . . . . . . . . . . . . Relay Couplers Released . | . . . . . . . . . . . . . . . . . . . . . Fabnet Peak Effective % . | . . . . . . . . . . . . . . . . . . . . . Robots Rewired 15 | . . . . . . . . . . . 1 . . 14 . . . . . . Allies Hacked 2 | . . . . . . 1 . . . . . . . 1 . . . . . . Hacks Repelled . | . . . . . . . . . . . . . . . . . . . . . Allies | -11 -10 -10 -10 -9 -8 -7 -7 -7 -6 -6 -5 -5 -4 -4 -4 -4 -4 -3 -2 -1 -------- Run | Yrd Mat Min Exi Min Mat Fac Low Low Fac DSF Fac Gar Fac Ext Cet Arc Hub Res Res Acc Total Allies 28 | . . . . . 1 1 . . . . 1 . . 20 5 . . . . . Largest Group 15 | . . . . . 1 1 . . . . 1 . . 15 6 . . . . . Highest-Rated Group 725 | . . . . . 10 10 . . . . 29 . . 725 631 . . . . . Highest-Rated Ally 159 | . . . . . 10 10 . . . . 29 . . 159 159 . . . . . Initial Warlord ECA Mod 9 | . . . . . . . . . . . 9 9 8 8 8 8 8 7 6 5 Total Orders 13 | . . . . . . . . . . . . . 1 2 . . . 2 4 4 STAY 1 | . . . . . . . . . . . . . . 1 . . . . . . FOLLOW 1 | . . . . . . . . . . . . . . 1 . . . . . . EXPLORE 7 | . . . . . . . . . . . . . . . . . . 2 2 3 RETURN 4 | . . . . . . . . . . . . . 1 . . . . . 2 1 Ally Attacks 200 | . . . . . . . . . . . 3 . . 144 53 . . . . . Total Damage 6349 | . . . . . . . . . . . 38 . . 4382 1929 . . . . . Kills 30 | . . . . . . . . . . . . . . 23 7 . . . . . Allies Corrupted . | . . . . . . . . . . . . . . . . . . . . . Allies Melted . | . . . . . . . . . . . . . . . . . . . . . Intel | -11 -10 -10 -10 -9 -8 -7 -7 -7 -6 -6 -5 -5 -4 -4 -4 -4 -4 -3 -2 -1 ------- Run | Yrd Mat Min Exi Min Mat Fac Low Low Fac DSF Fac Gar Fac Ext Cet Arc Hub Res Res Acc Active Infowar (turns) 3664 | . . . . . 275 646 136 . . . . . . . . . 751 704 418 734 Sensors 136 | . . . . . . . 136 . . . . . . . . . . . . . Terrain 447 | . . . . . . . . . . . . . . . . . . . . 447 Structural 921 | . . . . . 275 646 . . . . . . . . . . . . . . T.N.C. 125 | . . . . . . . . . . . . . . . . . . . . 125 Jamming 2496 | . . . . . . 6 . . . . . . . . . . 751 704 418 617 Robot Analysis Total 3 | . 2 . . . . . . . . . . . 1 . . . . . . . Derelict Logs Recovered 5 | . . 1 . 2 . . 2 . . . . . . . . . . . . . Drone Launches 15 | . . . . . . . . . . . . . 2 . . . . 4 4 5 Drone Recoveries 14 | . . . . . . . . . . . . . 2 . . . . 4 4 4 Exploration | -11 -10 -10 -10 -9 -8 -7 -7 -7 -6 -6 -5 -5 -4 -4 -4 -4 -4 -3 -2 -1 ------------- Run | Yrd Mat Min Exi Min Mat Fac Low Low Fac DSF Fac Gar Fac Ext Cet Arc Hub Res Res Acc Turns Passed 14884 | 79 3000 571 948 912 1045 1024 336 9 55 198 625 204 904 1128 534 281 816 733 422 1060 Spaces Moved 7435 | 47 1042 165 296 250 540 630 296 10 39 126 424 114 378 596 239 127 380 540 214 982 Core 322 | 8 . . . 1 . . . . . . . . . . . . . . . 313 Treads 1746 | 39 1042 165 296 204 . . . . . . . . . . . . . . . . Legs 5015 | . . . . 45 540 630 296 10 39 126 424 114 378 596 239 127 380 540 214 317 Wheels . | . . . . . . . . . . . . . . . . . . . . . Hover . | . . . . . . . . . . . . . . . . . . . . . Flight 352 | . . . . . . . . . . . . . . . . . . . . 352 Fastest Speed 22 | 50 160 320 320 320 112 85 98 98 98 98 98 116 113 98 119 120 120 115 115 22 Average Speed 145 | 141 256 320 320 327 120 102 98 98 132 102 104 116 114 111 119 120 120 119 115 60 Slowest Speed 1650 | 160 320 320 320 1650 190 170 98 98 178 180 116 116 116 121 121 120 120 120 115 250 Overloaded Moves 5 | . . . . . . . . . . . . . . . . . . . . 5 Propulsion Burnouts . | . . . . . . . . . . . . . . . . . . . . . Robots Hopped 4 | . . . . . . . . . . . . . . . . . . . . 4 Potential Cave-ins 30 | . . . . . . . . . . . . 17 . 8 . . . . . 5 Cave-ins Triggered 1 | . . . . . . . . . . . . . . . . . . . . 1 Exploration Rate (%) 38 | 4 94 52 69 55 37 17 42 4 1 82 20 20 10 57 67 74 28 19 13 41 Regions Visited 20 Branch Regions 9 Pre-discovered Areas 4 | . 1 . . . 3 . . . . . . . . . . . . . . . Known Exits Taken 11 | . . 1 . 1 1 1 1 . 1 . 1 . 1 1 . . . 1 1 . Unknown Exits Taken 7 | 1 1 . 1 . . . . 1 . . . . . . 1 1 1 . . . Scrap Searched 2 | . . 1 . 1 . . . . . . . . . . . . . . . . Spaces Dug 243 | . 8 . . 64 5 3 . . . 3 14 19 14 20 . . 30 4 1 58 Terrain Destroyed 510 | . 16 . . 107 5 3 . . . 22 18 19 17 80 . . 41 4 1 177 Melee 75 | . . . . . 5 3 . . . . 1 19 6 . . . 16 4 1 20 Projectile . | . . . . . . . . . . . . . . . . . . . . . AOE 435 | . 16 . . 107 . . . . . 22 17 . 11 80 . . 25 . . 157 Terrain Rammed . | . . . . . . . . . . . . . . . . . . . . . Walls Destroyed . | . . . . . . . . . . . . . . . . . . . . . Machines Disabled . | . . . . . . . . . . . . . . . . . . . . . Actions | -11 -10 -10 -10 -9 -8 -7 -7 -7 -6 -6 -5 -5 -4 -4 -4 -4 -4 -3 -2 -1 --------- Run | Yrd Mat Min Exi Min Mat Fac Low Low Fac DSF Fac Gar Fac Ext Cet Arc Hub Res Res Acc Total 10734 | 56 1242 188 300 300 911 985 328 9 42 167 588 155 818 1007 480 232 625 608 355 1338 Wait 2021 | . 46 3 . . 294 265 11 . . 7 107 8 372 220 195 79 126 18 94 176 Move 7408 | 46 1041 164 295 249 539 629 295 9 38 125 424 113 377 595 238 126 379 539 213 974 Hop 4 | . . . . . . . . . . . . . . . . . . . . 4 Pick Up 127 | 3 41 6 2 3 12 13 2 . . 2 6 . 4 5 2 2 6 5 7 6 Fast Attach 92 | 6 3 . . 1 . 5 . . 1 3 13 . 7 9 8 . 8 6 . 22 Attach 73 | . 3 . 1 3 8 5 . . 2 3 5 . 4 3 . . 5 4 8 19 Detach 17 | . . . . . . 1 . . 1 1 2 . . . . . . 1 . 11 Swap 112 | 1 5 2 . 5 9 10 4 . . . 5 1 7 22 7 1 14 7 4 8 Drop 198 | . 24 2 2 5 18 18 3 . . . 7 1 15 28 17 2 11 12 6 27 Fire 142 | . 65 7 . 28 1 . . . . 7 3 . 6 7 . . 2 1 . 15 Melee 419 | . . . . . 30 33 13 . . 19 13 30 26 49 13 22 74 14 23 60 Ram 12 | . . . . . . . . . . . . . . . . . . . . 12 Kick 13 | . . . . 4 . 1 . . . . 2 . . 1 . . . 1 . 4 Crush 20 | . 14 4 . 2 . . . . . . . . . . . . . . . . Escape Stasis 11 | . . . . . . 5 . . . . . 2 . 4 . . . . . . Rewire 65 | . . . . . . . . . . . 1 . . 64 . . . . . . Trap . | . . . . . . . . . . . . . . . . . . . . . Miscellaneous . | . . . . . . . . . . . . . . . . . . . . . Route ------- -11/Scrapyard -10/Materials (discovered 4 exits: *Mat x3 / *Min) -10/Mines (discovered 4 exits: *Mat x2 / *Exi / *Sub) -10/Exiles (discovered 2 exits: [*Min x2]) -9/Mines -8/Materials (discovered 2 exits: *Fac x2) -7/Factory (discovered 2 exits: *Low x2) -7/Lower Caves -7/Lower Caves (discovered 2 exits: *Fac / Dat) -6/Factory (discovered 4 exits: Fac / Low x2 / DSF) -6/DSF -5/Factory -5/Garrison (discovered 3 exits: *Fac x3) -4/Factory (discovered 4 exits: Upp x2 / *Ext x2) -4/Extension (discovered 2 exits: *Res / *Cet) -4/Cetus (discovered 2 exits: *Res / [*Arc]) -4/Archives -4/Hub_04(d) -3/Research (discovered 3 exits: *Res x3) -2/Research (discovered 3 exits: *Acc x3) -1/Access History --------- Turn | Location | Event 43 | -11/Scrapyard | Discovered new exit (range 16) 80 | -11/Scrapyard | Entered Materials 303 | -10/Materials | Build established: Mutant 330 | -10/Materials | Discovered new exit (range 16) 620 | -10/Materials | Discovered new exit (range 16) 1738 | -10/Materials | Discovered new exit (range 10) 1873 | -10/Materials | Repaired Lgt. Treads 2448 | -10/Materials | Learned location of 2 exits from Subcaves 2491 | -10/Materials | Discovered new exit (range 15) 2522 | -10/Materials | Learned 2 Storage zone layouts 2586 | -10/Materials | Learned 2 Mines zone layouts 2641 | -10/Materials | Loaded intel: 10 trap records 2684 | -10/Materials | Learned location of Storage (-9) 2717 | -10/Materials | Learned Storage trap positions 2762 | -10/Materials | Learned Recycling recycling unit intel 2817 | -10/Materials | Loaded intel: 7 terminal locations 2883 | -10/Materials | Learned Storage stockpile data 3080 | -10/Materials | Entered Mines 3081 | -10/Mines | Identified exit to Exiles 3081 | -10/Mines | Identified exit to Subcaves 3081 | -10/Mines | Identified exit to Materials 3337 | -10/Mines | Met a Derelict shopkeep closing up shop 3460 | -10/Mines | Discovered exit to Materials (range 11) 3534 | -10/Mines | Learned Materials stockpile data 3638 | -10/Mines | Deemed a non-threat by the Exiles lab entrance 3651 | -10/Mines | Entered Exiles 3693 | -10/Exiles | Discovered new exit (range 15) 3731 | -10/Exiles | Met 8R-AWN 3786 | -10/Exiles | Met EX-HEX 3984 | -10/Exiles | Met EX-BIN 4029 | -10/Exiles | Aligned with FarCom system 4032 | -10/Exiles | Given EX-Vault access code 4106 | -10/Exiles | Opened EX-Vault 4132 | -10/Exiles | Found Longsword +1 4200 | -10/Exiles | Warned to stay clear of 0b10 Research branches 4299 | -10/Exiles | Met EX-DEC 4574 | -10/Exiles | Discovered new exit (range 10) 4599 | -10/Exiles | Left Exiles lab with Longsword +1 4599 | -10/Exiles | Entered Mines 4748 | -9/Mines | Assembled infested the area 4779 | -9/Mines | Learned Materials emergency access door positions 4868 | -9/Mines | Identified exit to Materials 5321 | -9/Mines | Core integrity fell below 50% 5340 | -9/Mines | Lost 3 parts (2n1w) 5511 | -9/Mines | Entered Materials 5511 | -8/Materials | Evolved 4 slots: Propulsion x2, Utility x2 6093 | -8/Materials | Learned Factory emergency access door positions 6137 | -8/Materials | Learned location of Zion (-6) 6193 | -8/Materials | Learned location of 1 exit from Extension 6205 | -8/Materials | Learned Factory fabricator intel 6208 | -8/Materials | Learned Factory security intel 6209 | -8/Materials | Learned location of Extension (-4) 6212 | -8/Materials | Discovered new exit (range 16) 6226 | -8/Materials | Learned location of 2 exits from Lower Caves 6248 | -8/Materials | Learned 2 Lower Caves zone layouts 6281 | -8/Materials | Identified exit to Factory 6556 | -8/Materials | Entered Factory 6556 | -7/Factory | Evolved 2 slots: Propulsion x1, Utility x1 6559 | -7/Factory | Loaded intel: 6 fabricator locations 6613 | -7/Factory | Identified exit to Lower Caves 7153 | -7/Factory | Fabricated Imp. Medium Armor Plating (x2) 7350 | -7/Factory | Fabricated Imp. Medium Armor Plating (x2) 7401 | -7/Factory | Fabricated Imp. Medium Armor Plating (x2) 7580 | -7/Factory | Entered Lower Caves 7581 | -7/Lower Caves | Identified exit to Lower Caves 7827 | -7/Lower Caves | Learned 12 Factory zone layouts 7915 | -7/Lower Caves | Build established: Gladiator 7916 | -7/Lower Caves | Entered another Lower Caves area 7916 | -7/Lower Caves | Discovered new exit (range 10) 7917 | -7/Lower Caves | Identified exit to Data Miner 7922 | -7/Lower Caves | Attracted the attention of an 0b10 checkpoint 7925 | -7/Lower Caves | Entered Factory 7925 | -6/Factory | Evolved 2 slots: Power x1, Utility x1 7926 | -6/Factory | Identified exit to Lower Caves 7927 | -6/Factory | Identified exit to Factory 7979 | -6/Factory | Identified exit to DSF 7980 | -6/Factory | Entered DSF 8007 | -6/DSF | Additional patrols routed to DSF 8046 | -6/DSF | Lost 3 parts (2u1w) 8114 | -6/DSF | Sterilization system engaged 8134 | -6/DSF | Ambient heat levels rising (+10) 8149 | -6/DSF | Ambient heat levels rising (+10) 8163 | -6/DSF | Discovered exit to Factory (range 14) 8164 | -6/DSF | Ambient heat levels rising (+10) 8178 | -6/DSF | Entered Factory 8178 | -5/Factory | Evolved 2 slots: Utility x1, Weapon x1 8237 | -5/Factory | Repaired Imp. Medium Armor Plating 8276 | -5/Factory | Repaired VSS Leg+ 8475 | -5/Factory | Build established: Hacker-Mutant 8803 | -5/Factory | Identified exit to Garrison 8803 | -5/Factory | Entered Garrison 8836 | -5/Garrison | Identified exit to Factory 9007 | -5/Garrison | Entered Factory 9007 | -4/Factory | Evolved 2 slots: Propulsion x1, Utility x1 9162 | -4/Factory | Build established: Scavenger-Gladiator 9213 | -4/Factory | Identified exit to Upper Caves 9213 | -4/Factory | Identified exit to Extension 9574 | -4/Factory | Repaired Imp. VSS Leg 9588 | -4/Factory | Repaired Broken Imp. Titanium Leg? 9911 | -4/Factory | Entered Extension 9912 | -4/Extension | Identified exit to Cetus 10242 | -4/Extension | Rescued a captive Derelict 10262 | -4/Extension | Rescued a captive Derelict 10280 | -4/Extension | Rescued A7 10372 | -4/Extension | Rescued a captive Derelict 10631 | -4/Extension | Build established: Commander-Mutant 10657 | -4/Extension | Lost 3 allies 10669 | -4/Extension | Rescued a captive Derelict 10808 | -4/Extension | Rescued a captive Derelict 10910 | -4/Extension | Lost 6 allies 10911 | -4/Extension | First assault squad dispatched 10996 | -4/Extension | Lost 4 allies 11015 | -4/Extension | Discovered new exit (range 10) 11039 | -4/Extension | Entered Cetus 11039 | -4/Cetus | Accompanied by 2 allies (A7) 11044 | -4/Cetus | Acquired a Cetus Manufacturing Module code from A7 11054 | -4/Cetus | Spotted Cetus Guard 11054 | -4/Cetus | Spotted Cetus Guard 11056 | -4/Cetus | Spotted Cetus Guard 11056 | -4/Cetus | Spotted Cetus Guard 11071 | -4/Cetus | Allies destroyed Cetus Guard 11076 | -4/Cetus | Destroyed Cetus Guard 11086 | -4/Cetus | Allies destroyed Cetus Guard 11097 | -4/Cetus | Allies destroyed Cetus Guard 11188 | -4/Cetus | Build established: Hacker-Mutant 11244 | -4/Cetus | Started Cetus Manufacturing Module 11252 | -4/Cetus | Escorted A7 to Cetus Mainframe 11269 | -4/Cetus | Manufactured an Enhanced Grunt 11294 | -4/Cetus | Manufactured an Enhanced Grunt 11319 | -4/Cetus | Manufactured an Enhanced Grunt 11344 | -4/Cetus | Manufactured an Enhanced Grunt 11369 | -4/Cetus | Manufactured an Enhanced Grunt 11404 | -4/Cetus | Discovered new exit (range 15) 11458 | -4/Cetus | Spotted Cetus Guard 11460 | -4/Cetus | Spotted Cetus Guard 11462 | -4/Cetus | Spotted Cetus Guard 11467 | -4/Cetus | Allies destroyed Cetus Guard 11473 | -4/Cetus | Allies destroyed Cetus Guard 11476 | -4/Cetus | Discovered new exit (range 16) 11482 | -4/Cetus | Destroyed Cetus Guard 11496 | -4/Cetus | Found Prototype Protection 11496 | -4/Cetus | Identified Med. Regenerative Plating 11504 | -4/Cetus | Lost 6 allies 11523 | -4/Cetus | Extracted ID and sensor layout for unrecognized location from A7's data core 11527 | -4/Cetus | Found Prototype Device 11527 | -4/Cetus | Identified Exp. Thermal Shield 11540 | -4/Cetus | Found Exp. Thermal Shield 11573 | -4/Cetus | Entered Archives 11780 | -4/Archives | Build established: Scavenger-Mutant 11820 | -4/Archives | Discovered new exit (range 15) 11854 | -4/Archives | Entered Hub_04(d) 12553 | -4/Hub_04(d) | Discovered new exit (range 4) 12670 | -4/Hub_04(d) | Entered Research 12670 | -3/Research | Evolved 2 slots: Utility x1, Weapon x1 12870 | -3/Research | Revision forces began assault on 0b10 12891 | -3/Research | Met up with Revision 17++ 13144 | -3/Research | Identified exit to Research 13179 | -3/Research | Lost 5 allies 13249 | -3/Research | Found Prototype Processor 13249 | -3/Research | Identified Exp. Targeting Computer 13273 | -3/Research | Build established: Hacker-Mutant 13370 | -3/Research | Research terminal network offline 13403 | -3/Research | Entered another Research area 13403 | -2/Research | Evolved 2 slots: Utility x2 13424 | -2/Research | Identified exit to Access 13451 | -2/Research | Found Adv. Force Booster 13825 | -2/Research | Entered Access 13825 | -1/Access | Evolved 2 slots: Utility x2 14019 | -1/Access | Lost 4 parts (1n2u1w) 14362 | -1/Access | Lost 3 parts (3u) 14534 | -1/Access | Lost 3 parts (2n1u) 14623 | -1/Access | Crushed by falling debris 14623 | -1/Access | System corruption reached 10% 14676 | -1/Access | Spotted B-99 Colossus 14677 | -1/Access | Lost 4 parts (1n2u1w) 14743 | -1/Access | Found Prototype Device 14743 | -1/Access | Identified Thermal Barrier 14825 | -1/Access | First assault squad dispatched 14827 | -1/Access | Core integrity fell below 50% 14865 | -1/Access | Core integrity fell below 20% 14885 | -1/Access | Destroyed by P-80 Master with Gamma Rifle Last Messages --------------- 14857_ Connecting with Terminal... 14857_ ALERT: Suspicious activity at Terminal A001. Dispatching Investigation squad. 14862_ C-45 Heavy ARC bursts open, deploying its payload. 14862_ G-73 Enforcer unfolds itself. 14862_ E-15 Imp unfolds itself. 14863_ Acquired 15 matter. 14863_ Slammed into G-73 Enforcer. 14865_ P-80 Master resets G-73 Enforcer, system corruption cleaned. 14871_ System corrupted: Matter fused (-8). 14872_ Micro-nuke Launcher blown off. 14872_ Core Analyzer blown off. 14872_ Imp. Hacking Suite blown off. 14872_ E-15 Imp destroyed. 14873_ Acquired Micro-nuke Launcher. 14875_ Micro-nuke Launcher destroyed. 14880_ Slammed into S-43 Plague. 14882_ Imp. Melee Analysis Suite broken. 14882_ Destabilizing: Short circuit. 14883_ Slammed into S-43 Plague. Map ----- +----------------------------------------------------+ | " + #????????????????????????????????????????? | | " # #????????????????????????????????????????? | | " # #????????????????????????????????????????? | | #### #????????????????????????????????????????? | | #????????????????????????????????????????? | | #????????????????????????????????????????? | | #????????????????????????????????????????? | | +????????????????????????????????????????? | | #### #????????????????????????????????????????? | | ???# #????????????????????????????????????????? | | ???# #??????????????#####?????????????????????? | | ???? ???????????? ????????????????????? | | ???? ???????????? ????????????????????? | | ???? ????????????? ] ????????????????????? | | ???? ??????????????? ????????????????????? | | ??????????????????????? !=?????????????????????? | | ??????????????????????? ]=?????????????????????? | | ??????????????????????? = ?????????????????????? | | ??????????????????????? ?????????????????????? | | ???????????????????????? ??????????????????????? | | ???????????????????????? ??????????????????????? | | ???????????????????????? ??????????????????????? | | ???????????????????????? ??????????????????????? | | ????????????????????????#/#??######??????????????? | | ????????????????????????#s#?? #??????????????? | | ????????????????????????#@#? #??????????????? | | ????????????????????????# #? #??????????????? | | ?????????????????????####s## #??????????????? | | ???????????????####### # s# #?A????????????? | | ???????????????# s #??????????????? | | ???????????????# # #???????????? | | """"""""""""???# / ??????????? | | #"" #???# # ?????????? | | #"" #???# s #??##??????????? | | #"" #???# " #??????????????? | | #T #???# """ # # #??????????????? | | #"" #???# """ # # #??????????????? | | #"" #???# " #pp########??????????????? | | #"" ############## ######????????????????? | | "%"g p pg pg%=ghh ""????????????? | | "% g h T"????????????? | | ################+################# #??????????? | | ?????????????? ??????????????????##??????????? | | ?????????????# ????????????????????????????? | | ?????????????# ??????????????????????????? | | ?????????????# ????????????????????????? | | ?????????????# #??????????????????????? | | ?????????????# #??????????????????????? | | ?????????????# #??????????????????????? | | ?????????????# #??????????????????????? | +----------------------------------------------------+ Best States ------------- Heat Dissipation 52 Energy Generation 45 Energy Capacity 575 Matter Stores 300 Matter Capacity 300 Sight Range 16 Robot Scan Range 15 Terrain Scan Range 24 Terrain Scan Density 85 Jamming Range 16 Armor Coverage 675 Resistance: KI 25 Resistance: TH 30 Weapon Shielding 33 Evasion (%) 70 Targeting Accuracy 12 Melee Accuracy 12 Target Analysis 8 Core Analysis 6 Recoil Reduction 2 Force Boost 40 Offensive Hacking 24 Defensive Hacking 28 Authchip Count 1 Item Schematics ----------------- Huge Storage Unit | -10/Materials | Hacked Targeting Computer | -10/Materials | Hacked Heat Sink | -10/Materials | Hacked Imp. Medium Armor Plating | -7/Factory | Hacked Adv. Hacking Suite | -4/Extension | Hacked Lgt. Quantum Reactor | -4/Extension | Hacked Impulse Thruster Array | -4/Extension | Hacked Robot Schematics ------------------ None Fabricated ------------ Imp. Medium Armor Plating | x2 | -7/Factory | Authchip Imp. Medium Armor Plating | x2 | -7/Factory | Authchip Imp. Medium Armor Plating | x2 | -7/Factory Repaired ---------- Lgt. Treads | 30% | -10/Materials Imp. Medium Armor Plating | 20% | -5/Factory VSS Leg | 16% | -5/Factory Imp. VSS Leg | 25% | -4/Factory Imp. Titanium Leg | 23% | -4/Factory | Broken Studied --------- VSS Leg | -7/Factory | Hacked Titanium Leg | -7/Factory | Hacked Biometal Leg | -3/Research | Hacked Alien Tech Used ----------------- None Achievements -------------- Express Service Hot Goods Sixth Sense Window Shopping Challenges ------------ None Game ------ Seed GrenadeTiamatReplica Manual? 0 Play Time 01:42:37 Cumulative 941.5 hours Start 2025.11.01 @ 12:05:47 End 2025.11.01 @ 19:17:59 Sessions 3 Manual Loads 0 Difficulty Rogue Special Mode None Game No. 1595 Rogue 1595 Adventurer 0 Explorer 0 Win Type - Total 92 Types 54/1/16/15/4/0/0/1/0/1 Lore% 92 Gallery% 83 Achievement% 57 Wizard Run 0 Options --------- Layout 0 ASCII 1 Keyboard 0 Movement Numpad Keybinds 1 Fullscreen 2 Font 18/SmallcapsGlow Map View 76x50 Zoom Use 0% Tactical HUD 1 Map Filters NONE Filters NONE Steam 1 RUN: d54829ec-d32d-4df0-9b20-b147f970db82